[Event "Reykjavik Open 2022"]
[Site "Reykjavik"]
[Date "2022.04.07"]
[Round "2.43"]
[White "Ragnarsson, Johann"]
[Black "Cherniack, Alex"]
[Result "0-1"]
[ECO "D93"]
[WhiteElo "1919"]
[BlackElo "2213"]
[Annotator "ChessBase"]
[PlyCount "74"]
[EventDate "2022.04.06"]
[EventCountry "ISL"]
[SourceTitle "playchess.com"]
[Source "ChessBase"]
[SourceQuality "1"]
[TimeControl "40/5400+30:1800+30"]

1. d4 {[%emt 0:00:04]} Nf6 {[%emt 0:00:28]} 2. c4 {[%emt 0:00:14]} g6 {[%emt 0:00:06]} 3. Nc3 {[%emt 0:00:17]} d5 {[%emt 0:00:09]} 4. Bf4 {[%emt 0:00:09]} Bg7 {[%emt 0:00:25]} 5. e3 {[%emt 0:00:21]} c5 {[%emt 0:00:54]} 6. dxc5 {[%emt 0:00:25]} Qa5 {[%emt 0:00:10]} 7. Rc1 {[%emt 0:00:33]} dxc4 {[%emt 0:00:16]} 8. Bxc4 {[%emt 0:00:27]} O-O {[%emt 0:00:29]} 9. Nf3 {[%emt 0:01:13]} Nbd7 {[%emt 0:00:25]} 10. O-O {[%emt 0:07:26]} Nxc5 {[%emt 0:02:29]} 11. Nb5 {[%emt 0:05:39]} Ne6 {[%emt 0:03:06]} 12. Be5 {[%emt 0:05:18]} a6 {[%emt 0:27:00]} 13. Nc7 {[%emt 0:12:27]} Nxc7 {[%emt 0:03:19]} 14. Bxc7 {[%emt 0:00:07]} Qh5 {[%emt 0:02:42]} 15. Ne5 {[%emt 0:05:39]} Ne8 {[%emt 0:11:38]} 16. Bxf7+ {[%emt 0:14:40]} Rxf7 {[%emt 0:05:48]} 17. Nxf7 {[%emt 0:02:05]} Qxd1 {[%emt 0:03:32]} 18. Rfxd1 {[%emt 0:00:09]} Kxf7 {[%emt 0:00:09]} 19. Rd8 {[%emt 0:00:56]} b5 {[%emt 0:03:35]} 20. Ba5 {[%emt 0:09:22]} Bb7 {[%emt 0:00:05]} 21. Rxa8 {[%emt 0:00:08]} Bxa8 {[%emt 0:00:04]} 22. Rc8 {[%emt 0:00:22]} Be4 {[%emt 0:04:40]} 23. Bc3 {[%emt 0:11:28]} Nd6 {[%emt 0:03:12]} 24. Rc7 {[%emt 0:01:08]} Bxc3 {[%emt 0:01:20]} 25. Rxc3 {[%emt 0:00:04]} a5 {[%emt 0:08:28]} 26. f3 {[%emt 0:05:36]} Bb1 {[%emt 0:04:13]} 27. a4 {[%emt 0:08:28]} bxa4 {[%emt 0:02:03]} 28. e4 {[%emt 0:06:10]} Ba2 {[%emt 0:01:56]} 29. Kf1 {[%emt 0:00:33]} Nc4 {[%emt 0:02:21]} 30. Ke1 {[%emt 0:02:00]} Bb3 {[%emt 0:00:50]} 31. f4 {[%emt 0:01:20]} Ke6 {[%emt 0:02:39]} 32. g4 {[%emt 0:00:32]} Nxb2 {[%emt 0:01:58]} 33. Kd2 {[%emt 0:00:43]} Nc4+ {[%emt 0:01:10]} 34. Kc1 {[%emt 0:00:03]} a3 {[%emt 0:00:59]} 35. Kb1 {[%emt 0:00:10]} a4 {[%emt 0:00:11]} 36. Ka1 {[%emt 0:01:19]} a2 {[%emt 0:00:47]} 37. h4 {[%emt 0:00:40]} Na3 {[%emt 0:00:54]} 0-1

[Event "Reykjavik Open 2022"]
[Site "Reykjavik"]
[Date "2022.04.07"]
[Round "2.44"]
[White "Roe, Simon J"]
[Black "Mirza, Diana"]
[Result "1/2-1/2"]
[ECO "A35"]
[WhiteElo "2211"]
[BlackElo "1898"]
[Annotator "RC"]
[PlyCount "95"]
[EventDate "2022.04.06"]
[EventCountry "ISL"]
[SourceTitle "playchess.com"]
[Source "ChessBase"]
[SourceQuality "1"]
[TimeControl "40/5400+30:1800+30"]

1. c4 {[%emt 0:00:05]} c5 {[%emt 0:00:22]} 2. Nf3 {[%emt 0:00:42]} Nc6 {[%emt 0:00:30]} 3. Nc3 {[%emt 0:00:44]} g6 {[%emt 0:00:42]} 4. e3 {[%emt 0:01:47]} Nf6 {[%emt 0:00:40]} 5. d4 {[%emt 0:04:17]} cxd4 {[%emt 0:00:17]} 6. exd4 {[%emt 0:00:06]} d5 {[%emt 0:00:15]} 7. Bg5 {[%emt 0:03:52]} Ne4 {[%emt 0:29:37]} 8. cxd5 {[%emt 0:07:58]} Nxc3 {[%emt 0:01:06]} 9. bxc3 {[%emt 0:00:12]} Qxd5 {[%emt 0:00:31]} 10. Qb3 {[%emt 0:24:06]} Qe4+ {[%emt 0:09:07]} 11. Be3 {[%emt 0:01:49]} e6 {[%emt 0:11:29]} 12. Rd1 {[%emt 0:12:35]} Bg7 {[%emt 0:07:36]} 13. Bd3 {[%emt 0:00:34]} Qd5 {[%emt 0:00:36]} 14. Qa3 {[%emt 0:16:43]} Qa5 {[%emt 0:03:27]} 15. Qxa5 {[%emt 0:01:59]} Nxa5 {[%emt 0:02:39]} 16. Ne5 {[%emt 0:02:18]} O-O {[%emt 0:01:21]} 17. O-O {[%emt 0:00:27]} f6 {[%emt 0:01:43]} 18. Nc4 {[%emt 0:01:19]} Nxc4 {[%emt 0:01:46]} 19. Bxc4 {[%emt 0:00:03]} Bd7 {[%emt 0:02:28]} 20. d5 {[%emt 0:01:48]} e5 {[%emt 0:00:12]} 21. d6+ {[%emt 0:02:30]} Kh8 {[%emt 0:00:10]} 22. Bd5 {[%emt 0:01:01]} Rac8 {[%emt 0:03:56]} 23. Bxb7 {[%emt 0:05:09]} Rxc3 {[%emt 0:00:19]} 24. Rc1 {[%emt 0:00:56]} Rd3 {[%emt 0:05:55]} 25. Be4 {[%emt 0:02:07]} Ra3 {[%emt 0:09:38]} 26. Rc7 {[%emt 0:01:32]} Rd8 {[%emt 0:00:23]} 27. Rxa7 {[%emt 0:03:35]} Rxa7 {[%emt 0:02:26]} 28. Bxa7 {[%emt 0:00:02]} Bf8 {[%emt 0:03:17]} 29. Bc5 {[%emt 0:02:39]} Be6 {[%emt 0:00:36]} 30. Rd1 {[%emt 0:01:32]} Bxa2 {[%emt 0:00:27]} 31. g3 {[%emt 0:00:36]} f5 {[%emt 0:00:17]} 32. Bb7 {[%emt 0:00:43]} Kg7 {[%emt 0:01:03]} 33. f4 {[%emt 0:00:35]} exf4 {[%emt 0:01:12]} 34. gxf4 {[%emt 0:00:03]} Kf6 {[%emt 0:00:32]} 35. Kg2 {[%emt 0:00:20]} Be6 {[%emt 0:00:25]} 36. Bd4+ {[%emt 0:00:22]} Kf7 {[%emt 0:00:06]} 37. Be5 {[%emt 0:00:03]} Bg7 {[%emt 0:00:27]} 38. Rc1 {[%emt 0:00:31]} Bf8 {[%emt 0:00:44]} 39. Rc7+ {[%emt 0:01:36]} Rd7 {[%emt 0:00:04]} 40. Bc6 {[%emt 0:00:00]} Rxc7 {[%emt 0:00:00]} 41. dxc7 {[%emt 0:00:38]} Bc8 {[%emt 0:02:05]} 42. Bd5+ {[%emt 0:10:19]} Ke7 {[%emt 0:02:40]} 43. Kg3 {[%emt 0:02:15]} h6 {[%emt 0:10:56]} 44. Kf2 {[%emt 0:08:31]} g5 {[%emt 0:03:52]} 45. Ke3 {[%emt 0:00:06]} Kd7 {[%emt 0:01:50]} 46. fxg5 {[%emt 0:08:06]} hxg5 {[%emt 0:00:09]} 47. Bf6 {[%emt 0:00:14]} Bd6 {[%emt 0:03:25]} 48. Bxg5 {[%emt 0:01:31]} 1/2-1/2

[Event "Reykjavik Open 2022"]
[Site "Reykjavik"]
[Date "2022.04.07"]
[Round "2.45"]
[White "Schmidt, Kai-Uwe"]
[Black "Jaksland, Tim"]
[Result "0-1"]
[ECO "A46"]
[WhiteElo "1904"]
[BlackElo "2201"]
[Annotator "ChessBase"]
[PlyCount "69"]
[EventDate "2022.04.06"]
[EventCountry "ISL"]
[SourceTitle "playchess.com"]
[Source "ChessBase"]
[SourceQuality "1"]
[TimeControl "40/5400+30:1800+30"]

1. d4 {[%emt 0:11:04]} Nf6 {[%emt 0:00:11]} 2. Nf3 {[%emt 0:00:15]} e6 {[%emt 0:00:28]} 3. Bg5 {[%emt 0:00:21]} h6 {[%emt 0:00:48]} 4. Bxf6 {[%emt 0:00:31]} Qxf6 {[%emt 0:00:09]} 5. e4 {[%emt 0:00:05]} d6 {[%emt 0:01:30]} 6. Nc3 {[%emt 0:00:07]} g6 {[%emt 0:03:52]} 7. Qd2 {[%emt 0:05:18]} Bg7 {[%emt 0:02:22]} 8. O-O-O {[%emt 0:14:02]} Qe7 {[%emt 0:09:53]} 9. h4 {[%emt 0:08:41]} h5 {[%emt 0:18:33]} 10. Kb1 {[%emt 0:06:22]} Bh6 {[%emt 0:08:27]} 11. Qe1 {[%emt 0:04:12]} a6 {[%emt 0:01:32]} 12. Be2 {[%emt 0:09:46]} Nd7 {[%emt 0:01:30]} 13. Nd2 {[%emt 0:08:04]} b6 {[%emt 0:22:29]} 14. g3 {[%emt 0:04:47]} Bg7 {[%emt 0:07:17]} 15. Nb3 {[%emt 0:04:30]} c5 {[%emt 0:02:27]} 16. f4 {[%emt 0:03:50]} Bb7 {[%emt 0:07:04]} 17. Rf1 {[%emt 0:05:54]} cxd4 {[%emt 0:00:42]} 18. Nxd4 {[%emt 0:00:09]} O-O {[%emt 0:00:20]} 19. Bf3 {[%emt 0:04:26]} b5 {[%emt 0:00:35]} 20. a3 {[%emt 0:00:44]} Rac8 {[%emt 0:00:41]} 21. Nde2 {[%emt 0:04:07]} Nb6 {[%emt 0:00:40]} 22. Rd3 {[%emt 0:03:13]} Rfd8 {[%emt 0:01:11]} 23. f5 {[%emt 0:00:51]} Be5 {[%emt 0:02:21]} 24. Qf2 {[%emt 0:00:21]} Nd7 {[%emt 0:00:26]} 25. Nf4 {[%emt 0:00:35]} Nf8 {[%emt 0:01:38]} 26. Qe2 {[%emt 0:00:31]} Bxf4 {[%emt 0:01:29]} 27. gxf4 {[%emt 0:00:05]} Qxh4 {[%emt 0:00:29]} 28. fxg6 {[%emt 0:00:53]} fxg6 {[%emt 0:00:11]} 29. Qg2 {[%emt 0:00:20]} Rc5 {[%emt 0:01:18]} 30. e5 {[%emt 0:00:28]} Bxf3 {[%emt 0:00:41]} 31. Qxf3 {[%emt 0:00:35]} d5 {[%emt 0:01:02]} 32. Qe3 {[%emt 0:00:48]} Rc4 {[%emt 0:01:26]} 33. Ne2 {[%emt 0:00:25]} Rdc8 {[%emt 0:01:34]} 34. c3 {[%emt 0:00:02]} Re4 {[%emt 0:00:19]} 35. Qd2 {[%emt 0:01:13]} 0-1

[Event "Reykjavik Open 2022"]
[Site "Reykjavik"]
[Date "2022.04.07"]
[Round "2.46"]
[White "Kolka, Dawid"]
[Black "Player, Edmund C"]
[Result "0-1"]
[ECO "C01"]
[WhiteElo "1897"]
[BlackElo "2196"]
[Annotator "RC"]
[PlyCount "122"]
[EventDate "2022.04.06"]
[EventCountry "ISL"]
[SourceTitle "playchess.com"]
[Source "ChessBase"]
[SourceQuality "1"]
[TimeControl "40/5400+30:1800+30"]

1. e4 {[%emt 0:00:02]} e6 {[%emt 0:00:04]} 2. d4 {[%emt 0:00:04]} d5 {[%emt 0:00:05]} 3. exd5 {[%emt 0:00:08]} exd5 {[%emt 0:00:04]} 4. Nc3 {[%emt 0:00:13]} Bb4 {[%emt 0:00:50]} 5. Bd3 {[%emt 0:00:05]} Nc6 {[%emt 0:02:24]} 6. a3 {[%emt 0:01:39]} Bxc3+ {[%emt 0:01:30]} 7. bxc3 {[%emt 0:00:01]} Nge7 {[%emt 0:03:26]} 8. Ne2 {[%emt 0:01:29]} Bg4 {[%emt 0:03:57]} 9. f3 {[%emt 0:03:17]} Bf5 {[%emt 0:01:58]} 10. Ng3 {[%emt 0:09:10]} Bg6 {[%emt 0:01:02]} 11. O-O {[%emt 0:04:36]} O-O {[%emt 0:01:42]} 12. Be3 {[%emt 0:12:28]} Qd7 {[%emt 0:02:06]} 13. Qd2 {[%emt 0:06:48]} Na5 {[%emt 0:09:20]} 14. Rae1 {[%emt 0:04:07]} Nc8 {[%emt 0:06:31]} 15. h4 {[%emt 0:05:04]} f6 {[%emt 0:25:34]} 16. h5 {[%emt 0:04:15]} Bf7 {[%emt 0:01:20]} 17. Nf5 {[%emt 0:06:34]} Nc4 {[%emt 0:05:35]} 18. Bxc4 {[%emt 0:00:48]} Qxf5 {[%emt 0:00:59]} 19. g4 {[%emt 0:00:26]} Qd7 {[%emt 0:00:31]} 20. Bd3 {[%emt 0:00:43]} Nd6 {[%emt 0:01:14]} 21. Bf4 {[%emt 0:02:24]} Nc4 {[%emt 0:03:50]} 22. Bxc4 {[%emt 0:02:18]} dxc4 {[%emt 0:00:04]} 23. Re3 {[%emt 0:02:01]} c5 {[%emt 0:11:41]} 24. Rfe1 {[%emt 0:03:01]} Rad8 {[%emt 0:01:15]} 25. h6 {[%emt 0:11:32]} g5 {[%emt 0:03:47]} 26. Re7 {[%emt 0:08:36]} Qd5 {[%emt 0:00:58]} 27. Bc7 {[%emt 0:00:55]} Rd7 {[%emt 0:04:07]} 28. Rxd7 {[%emt 0:01:01]} Qxd7 {[%emt 0:00:02]} 29. Bg3 {[%emt 0:00:13]} Rd8 {[%emt 0:01:24]} 30. Bf2 {[%emt 0:03:22]} Qd6 {[%emt 0:02:35]} 31. Re3 {[%emt 0:00:54]} Qf8 {[%emt 0:00:54]} 32. Qe2 {[%emt 0:01:52]} cxd4 {[%emt 0:01:45]} 33. cxd4 {[%emt 0:00:15]} Qxh6 {[%emt 0:01:01]} 34. Re7 {[%emt 0:01:53]} Qf8 {[%emt 0:02:38]} 35. Qe4 {[%emt 0:00:48]} Re8 {[%emt 0:01:08]} 36. Rxe8 {[%emt 0:00:24]} Bxe8 {[%emt 0:00:12]} 37. Qxb7 {[%emt 0:00:56]} Qxa3 {[%emt 0:00:31]} 38. d5 {[%emt 0:00:52]} Qxf3 {[%emt 0:00:24]} 39. Qc8 {[%emt 0:01:07]} Qe4 {[%emt 0:00:44]} 40. Qe6+ {[%emt 0:00:00]} Qxe6 {[%emt 0:00:00]} 41. dxe6 {[%emt 0:02:58]} a5 {[%emt 0:11:09]} 42. Bc5 {[%emt 0:09:31]} Ba4 {[%emt 0:00:49]} 43. Bb6 {[%emt 0:03:43]} Bxc2 {[%emt 0:00:33]} 44. Bxa5 {[%emt 0:00:02]} Bd1 {[%emt 0:01:39]} 45. Bc3 {[%emt 0:00:49]} Bxg4 {[%emt 0:00:49]} 46. e7 {[%emt 0:02:01]} Bd7 {[%emt 0:00:20]} 47. Bxf6 {[%emt 0:00:06]} h6 {[%emt 0:00:12]} 48. Bc3 {[%emt 0:01:12]} Kf7 {[%emt 0:00:22]} 49. Bb4 {[%emt 0:00:46]} Ke6 {[%emt 0:00:18]} 50. Kf2 {[%emt 0:02:16]} Kd5 {[%emt 0:02:05]} 51. Ke3 {[%emt 0:00:20]} h5 {[%emt 0:02:33]} 52. Bc3 {[%emt 0:00:21]} h4 {[%emt 0:01:00]} 53. Bf6 {[%emt 0:01:58]} h3 {[%emt 0:00:18]} 54. Kf3 {[%emt 0:00:16]} g4+ {[%emt 0:00:25]} 55. Kg3 {[%emt 0:00:06]} Ke4 {[%emt 0:00:15]} 56. Bg5 {[%emt 0:01:04]} Kd3 {[%emt 0:02:08]} 57. Bf4 {[%emt 0:00:28]} c3 {[%emt 0:02:19]} 58. e8=Q {[%emt 0:00:28]} Bxe8 {[%emt 0:00:01]} 59. Kxg4 {[%emt 0:00:08]} Bd7+ {[%emt 0:00:10]} 60. Kf3 {[%emt 0:00:05]} c2 {[%emt 0:00:42]} 61. Kf2 {[%emt 0:04:41]} Kc3 {[%emt 0:00:28]} 0-1

[Event "Reykjavik Open 2022"]
[Site "Reykjavik"]
[Date "2022.04.07"]
[Round "2.47"]
[White "Popvasilev, Kaloyan"]
[Black "Arnalds, Stefan"]
[Result "1-0"]
[ECO "B45"]
[WhiteElo "2191"]
[BlackElo "1902"]
[Annotator "ChessBase"]
[PlyCount "61"]
[EventDate "2022.04.06"]
[EventCountry "ISL"]
[SourceTitle "playchess.com"]
[Source "ChessBase"]
[SourceQuality "1"]
[TimeControl "40/5400+30:1800+30"]

1. e4 {[%emt 0:00:05]} c5 {[%emt 0:00:18]} 2. Nf3 {[%emt 0:00:06]} e6 {[%emt 0:00:03]} 3. d4 {[%emt 0:00:30]} cxd4 {[%emt 0:00:06]} 4. Nxd4 {[%emt 0:00:05]} Nf6 {[%emt 0:00:07]} 5. Nc3 {[%emt 0:00:36]} Nc6 {[%emt 0:00:22]} 6. Ndb5 {[%emt 0:04:39]} Bb4 {[%emt 0:05:03]} 7. a3 {[%emt 0:01:15]} Bxc3+ {[%emt 0:00:16]} 8. Nxc3 {[%emt 0:00:05]} d5 {[%emt 0:02:11]} 9. exd5 {[%emt 0:02:19]} exd5 {[%emt 0:00:06]} 10. Bd3 {[%emt 0:01:49]} d4 {[%emt 0:05:20]} 11. Ne2 {[%emt 0:02:36]} O-O {[%emt 0:19:22]} 12. O-O {[%emt 0:00:30]} Qd5 {[%emt 0:04:28]} 13. Nf4 {[%emt 0:07:09]} Qd6 {[%emt 0:05:08]} 14. Nh5 {[%emt 0:06:56]} Nxh5 {[%emt 0:26:39]} 15. Qxh5 {[%emt 0:00:06]} g6 {[%emt 0:02:43]} 16. Qh4 {[%emt 0:03:46]} f5 {[%emt 0:10:19]} 17. Bf4 {[%emt 0:02:54]} Qf6 {[%emt 0:01:57]} 18. Bg5 {[%emt 0:01:35]} Qf7 {[%emt 0:04:03]} 19. Rae1 {[%emt 0:10:08]} Be6 {[%emt 0:06:43]} 20. b3 {[%emt 0:04:50]} Rfe8 {[%emt 0:00:33]} 21. Qf4 {[%emt 0:04:24]} Bd5 {[%emt 0:01:48]} 22. Qd6 {[%emt 0:09:51]} Kg7 {[%emt 0:00:44]} 23. f4 {[%emt 0:05:21]} a6 {[%emt 0:02:13]} 24. a4 {[%emt 0:07:24]} Rac8 {[%emt 0:01:04]} 25. b4 {[%emt 0:03:17]} Bc4 {[%emt 0:00:45]} 26. b5 {[%emt 0:00:32]} Bxd3 {[%emt 0:00:29]} 27. cxd3 {[%emt 0:00:05]} axb5 {[%emt 0:00:32]} 28. axb5 {[%emt 0:00:03]} Rxe1 {[%emt 0:00:17]} 29. Rxe1 {[%emt 0:00:06]} Re8 {[%emt 0:00:14]} 30. Qf6+ {[%emt 0:06:31]} Kg8 {[%emt 0:01:00]} 31. Qxf7+ {[%emt 0:00:08]} 1-0

[Event "Reykjavik Open 2022"]
[Site "Reykjavik"]
[Date "2022.04.07"]
[Round "2.48"]
[White "Zheng, Harry Z"]
[Black "Ptacnikova, Lenka"]
[Result "1/2-1/2"]
[ECO "B48"]
[WhiteElo "1718"]
[BlackElo "2173"]
[Annotator "ChessBase"]
[PlyCount "96"]
[EventDate "2022.04.06"]
[EventCountry "ISL"]
[SourceTitle "playchess.com"]
[Source "ChessBase"]
[SourceQuality "1"]
[TimeControl "40/5400+30:1800+30"]

1. e4 {[%emt 0:00:05]} c5 {[%emt 0:00:07]} 2. Nf3 {[%emt 0:00:11]} e6 {[%emt 0:00:06]} 3. d4 {[%emt 0:00:11]} cxd4 {[%emt 0:00:03]} 4. Nxd4 {[%emt 0:00:13]} Nc6 {[%emt 0:00:15]} 5. Nc3 {[%emt 0:01:48]} Qc7 {[%emt 0:02:26]} 6. Be3 {[%emt 0:03:36]} a6 {[%emt 0:00:26]} 7. Qd2 {[%emt 0:01:36]} Nf6 {[%emt 0:02:33]} 8. O-O-O {[%emt 0:00:45]} Bb4 {[%emt 0:01:53]} 9. f3 {[%emt 0:00:30]} O-O {[%emt 0:01:02]} 10. g4 {[%emt 0:02:58]} d5 {[%emt 0:04:53]} 11. g5 {[%emt 0:04:23]} Nd7 {[%emt 0:00:18]} 12. exd5 {[%emt 0:06:55]} exd5 {[%emt 0:00:06]} 13. a3 {[%emt 0:00:42]} Ba5 {[%emt 0:01:06]} 14. Nb3 {[%emt 0:07:26]} Bxc3 {[%emt 0:03:51]} 15. Qxc3 {[%emt 0:00:22]} Qe5 {[%emt 0:00:42]} 16. Qxe5 {[%emt 0:05:25]} Ndxe5 {[%emt 0:00:19]} 17. f4 {[%emt 0:01:23]} Nc4 {[%emt 0:01:47]} 18. Bc5 {[%emt 0:02:01]} Bg4 {[%emt 0:00:29]} 19. Rxd5 {[%emt 0:19:37]} Bf3 {[%emt 0:04:53]} 20. Bxc4 {[%emt 0:00:52]} Bxh1 {[%emt 0:00:21]} 21. Rd1 {[%emt 0:01:46]} Bf3 {[%emt 0:08:20]} 22. Rf1 {[%emt 0:00:17]} Be4 {[%emt 0:02:01]} 23. Bxf8 {[%emt 0:00:17]} Kxf8 {[%emt 0:00:03]} 24. Nc5 {[%emt 0:02:02]} b5 {[%emt 0:07:20]} 25. Bxb5 {[%emt 0:06:30]} axb5 {[%emt 0:00:06]} 26. Nxe4 {[%emt 0:00:11]} b4 {[%emt 0:00:06]} 27. Rf3 {[%emt 0:00:58]} Nd4 {[%emt 0:00:14]} 28. Re3 {[%emt 0:06:35]} bxa3 {[%emt 0:02:06]} 29. Rxa3 {[%emt 0:02:02]} Rxa3 {[%emt 0:00:36]} 30. bxa3 {[%emt 0:00:07]} Ne2+ {[%emt 0:00:05]} 31. Kd2 {[%emt 0:00:50]} Nxf4 {[%emt 0:00:05]} 32. a4 {[%emt 0:00:38]} Ke7 {[%emt 0:00:42]} 33. Kc3 {[%emt 0:04:34]} Kd7 {[%emt 0:00:59]} 34. Kc4 {[%emt 0:05:14]} Kc6 {[%emt 0:00:12]} 35. Nd2 {[%emt 0:02:47]} Nd5 {[%emt 0:03:19]} 36. Nf3 {[%emt 0:01:33]} Nb6+ {[%emt 0:00:20]} 37. Kb4 {[%emt 0:00:30]} Nd5+ {[%emt 0:01:24]} 38. Kb3 {[%emt 0:00:31]} Kc5 {[%emt 0:02:00]} 39. Ne5 {[%emt 0:04:12]} f5 {[%emt 0:00:18]} 40. gxf6 {[%emt 0:00:00]} Nxf6 {[%emt 0:00:00]} 41. c4 {[%emt 0:01:41]} g5 {[%emt 0:04:02]} 42. a5 {[%emt 0:02:52]} g4 {[%emt 0:02:16]} 43. Nd3+ {[%emt 0:02:35]} Kc6 {[%emt 0:03:42]} 44. Nb4+ {[%emt 0:06:07]} Kb7 {[%emt 0:07:15]} 45. c5 {[%emt 0:03:28]} h5 {[%emt 0:03:08]} 46. c6+ {[%emt 0:01:08]} Kc7 {[%emt 0:04:46]} 47. a6 {[%emt 0:03:04]} Kb6 {[%emt 0:01:02]} 48. Kc4 {[%emt 0:04:46]} h4 {[%emt 0:12:13]} 1/2-1/2

[Event "Reykjavik Open 2022"]
[Site "Reykjavik"]
[Date "2022.04.07"]
[Round "2.49"]
[White "Solnicki, Michal"]
[Black "Baecker, Niko"]
[Result "0-1"]
[ECO "A12"]
[WhiteElo "2182"]
[BlackElo "1843"]
[Annotator "TA"]
[PlyCount "160"]
[EventDate "2022.04.06"]
[EventCountry "ISL"]
[SourceTitle "playchess.com"]
[Source "ChessBase"]
[SourceQuality "1"]
[TimeControl "40/5400+30:1800+30"]

{[%evp 89,160,0,0,0,0,0,0,0,0,0,0,-57,0,0,0,-25,0,-260,-194,-212,-203,-697,-675,-678,-606,-557,-477,-535,0,0,0,-557,-537,-533,-500,-520,-479,-450,-414,-407,-304,-666,-552,-852,-233,-401,-372,-268,-223,-202,-165,-12840,-12840,-12842,-12842,-12843,-12843,-12843,-12841,-12842,-12842,-12842,-12842,-12843,-12843,-12844,-12844,-12844,-12844,-12847,-12847,-12848,-12848]} 1. Nf3 {[%emt 0:00:03]} Nf6 {[%emt 0:00:27]} 2. c4 {[%emt 0:00:17]} c6 {[%emt 0:00:44]} 3. b3 {[%emt 0:01:06]} d5 {[%emt 0:01:03]} 4. Bb2 {[%emt 0:00:16]} Bf5 {[%emt 0:02:22]} 5. g3 {[%emt 0:01:42]} e6 {[%emt 0:02:21]} 6. Bg2 {[%emt 0:00:16]} Be7 {[%emt 0:01:28]} 7. O-O {[%emt 0:00:19]} O-O {[%emt 0:00:37]} 8. d3 {[%emt 0:02:44]} h6 {[%emt 0:04:09]} 9. Nbd2 {[%emt 0:01:47]} Nbd7 {[%emt 0:01:04]} 10. Re1 {[%emt 0:02:08]} Bg6 {[%emt 0:08:20]} 11. Qc2 {[%emt 0:11:57]} Rc8 {[%emt 0:07:10]} 12. e4 {[%emt 0:05:36]} Nc5 {[%emt 0:06:45]} 13. Ne5 {[%emt 0:02:51]} Bh7 {[%emt 0:00:53]} 14. b4 {[%emt 0:11:18]} Ncd7 {[%emt 0:02:31]} 15. Nxd7 {[%emt 0:02:31]} Nxd7 {[%emt 0:00:21]} 16. Qc3 {[%emt 0:01:55]} Bf6 {[%emt 0:06:12]} 17. Qa3 {[%emt 0:06:22]} Bxb2 {[%emt 0:03:50]} 18. Qxb2 {[%emt 0:00:02]} c5 {[%emt 0:09:49]} 19. d4 {[%emt 0:14:03]} cxd4 {[%emt 0:06:26]} 20. Qxd4 {[%emt 0:04:49]} dxc4 {[%emt 0:00:34]} 21. Nxc4 {[%emt 0:02:09]} Qc7 {[%emt 0:16:57]} 22. Bf1 {[%emt 0:03:06]} Nb6 {[%emt 0:04:20]} 23. Na5 {[%emt 0:01:26]} Rfd8 {[%emt 0:00:28]} 24. Qe3 {[%emt 0:00:22]} Qe7 {[%emt 0:02:42]} 25. a3 {[%emt 0:00:23]} e5 {[%emt 0:00:46]} 26. Rac1 {[%emt 0:01:06]} Kh8 {[%emt 0:01:35]} 27. Nb3 {[%emt 0:01:02]} f6 {[%emt 0:01:34]} 28. Nc5 {[%emt 0:00:47]} Rd4 {[%emt 0:01:26]} 29. f3 {[%emt 0:03:30]} Bg8 {[%emt 0:01:34]} 30. Rc3 {[%emt 0:01:37]} Nc4 {[%emt 0:01:36]} 31. Bxc4 {[%emt 0:06:59]} Rxc4 {[%emt 0:01:14]} 32. Rxc4 {[%emt 0:03:16]} Bxc4 {[%emt 0:00:06]} 33. Rc1 {[%emt 0:00:15]} Bf7 {[%emt 0:00:21]} 34. Kf2 {[%emt 0:00:53]} b6 {[%emt 0:00:22]} 35. Nd3 {[%emt 0:00:28]} Rxc1 {[%emt 0:01:01]} 36. Qxc1 {[%emt 0:00:47]} Qe6 {[%emt 0:00:09]} 37. Ke3 {[%emt 0:02:26]} Qb3 {[%emt 0:04:04]} 38. Qb2 {[%emt 0:01:06]} Qc4 {[%emt 0:00:38]} 39. f4 {[%emt 0:00:47]} Bg6 {[%emt 0:01:09]} 40. Nf2 {[%emt 0:00:00]} Kh7 {[%emt 0:00:00]} 41. fxe5 {[%emt 0:02:20]} fxe5 {[%emt 0:02:55]} 42. g4 {[%emt 0:04:37]} Qf1 {[%emt 0:03:53]} 43. h3 {[%emt 0:09:57]} Qc4 {[%emt 0:06:47]} 44. h4 {[%emt 0:01:06]} Qf7 {[%emt 0:02:22]} 45. Qxe5 {[%emt 0:02:03]} Qb3+ {[%emt 0:00:18]} 46. Nd3 {[%emt 0:00:59]} Qxa3 {[%emt 0:00:22]} 47. h5 {[%emt 0:01:57]} Bf7 {[%emt 0:00:05]} 48. Qf5+ {[%emt 0:00:46]} Kg8 {[%emt 0:00:12]} 49. Qc8+ {[%emt 0:07:11]} Kh7 {[%emt 0:01:10]} 50. Qc2 {[%emt 0:01:58]} (50. e5 $11 Qb3 51. Qf5+ Kg8 52. Qd7) 50... Bg8 {[%emt 0:05:14]} (50... Qb3 $1 $15 51. Qc8 (51. Qxb3 Bxb3 52. Kd4 g5 $17) 51... Be6) 51. e5 $11 {[%emt 0:03:09]} a5 {[%emt 0:00:14]} 52. b5 {[%emt 0:02:04]} Qb3 {[%emt 0:02:40]} (52... a4 {looks sharper.} 53. Qc6 Qb3 54. g5 a3) 53. Qxb3 $4 {[%emt 0:03:46][%mdl 8192]} (53. Qc6 $11 {and White has nothing to worry.}) 53... Bxb3 $19 {[%emt 0:00:07]} 54. Kd4 {[%emt 0:00:04]} Kg8 $1 {[%emt 0:00:47]} 55. Nf4 $2 {[%emt 0:00:27]} (55. Kc3 Ba4 56. Kc4) 55... Kf7 $19 {[%emt 0:00:18]} 56. Kc3 {[%emt 0:00:49]} Be6 {[%emt 0:01:21]} 57. Kd4 {[%emt 0:00:24]} Ke7 {[%emt 0:06:33]} 58. Ng6+ {[%emt 0:00:11]} Kd7 {[%emt 0:00:06]} 59. Nf8+ {[%emt 0:00:05]} Ke7 {[%emt 0:00:08]} 60. Ng6+ $1 {[%emt 0:00:04]} Kd8 {[%emt 0:00:11]} 61. Nf4 {[%emt 0:01:12]} Kd7 {[%emt 0:00:19]} 62. Kc3 {[%emt 0:01:08]} Bf7 {[%emt 0:02:50]} ({Stronger than} 62... Bxg4 63. Nd5 $17) 63. Nd3 {[%emt 0:00:24]} Bd5 {[%emt 0:02:10]} 64. Kd4 {[%emt 0:00:22]} Bf3 {[%emt 0:00:25]} 65. Nf2 $2 {[%emt 0:00:30]} (65. Nf4) 65... Ke6 $19 {[%emt 0:00:24]} 66. Ke3 {[%emt 0:00:05] [#]} Bd5 $2 {[%emt 0:00:35]} (66... a4 $1 {[%cal Oa4a3] Threatens to win with ...a3!} 67. Kd2 Kxe5) 67. Kd4 $19 {[%emt 0:00:05]} a4 {[%emt 0:00:50]} 68. Nd3 {[%emt 0:00:03] [#]} a3 $1 {[%emt 0:00:53]} 69. Nf4+ {[%emt 0:00:23]} Kf7 {[%emt 0:00:16]} 70. Kxd5 $2 {[%emt 0:00:56]} ({Avoid the trap} 70. Nxd5 $2 a2 71. Kc4 a1=Q $19) (70. Kc3 Bc4 71. Kc2 (71. Kxc4 $2 a2 $19)) 70... a2 $19 {[%emt 0:00:10]} 71. Kd6 {[%emt 0:00:20]} a1=Q {[%emt 0:00:31]} 72. e6+ {[%emt 0:00:14]} Ke8 {[%emt 0:00:09]} 73. Nd5 {[%emt 0:00:18]} Qa3+ {[%emt 0:00:32]} 74. Ke5 {[%emt 0:00:13]} Qc5 {[%emt 0:00:26]} 75. Ke4 {[%emt 0:00:10]} Qd6 {[%emt 0:00:37]} 76. Nf4 {[%emt 0:00:15]} Qb4+ {[%emt 0:00:42]} 77. Ke5 {[%emt 0:00:32]} Qxb5+ {[%emt 0:00:19]} 78. Nd5 {[%emt 0:00:03]} Qc5 {[%emt 0:00:16]} 79. e7 {[%emt 0:00:05]} Qxd5+ {[%emt 0:00:45]} 80. Kxd5 {[%emt 0:00:04]} Kxe7 {[%emt 0:00:10]} 0-1